bitfinex/quotes_ETHUSD_20240917
["timestamp","ask_amount","ask_price","bid_price","bid_amount"]
[1726588919479,1.1082241,2389.6,2389.2,4.1917186]
[1726588919936,2.4702,2389.5,2389.2,4.1917186]
[1726588920129,2.4702,2389.5,2389.3,4.18528]
[1726588920373,2.4702,2389.5,2389.2,4.1917186]
[1726588920576,0.53213409,2389.4,2389.2,0.0063786]
[1726588920934,2.2727,2389.3,2389.2,0.0063786]
[1726588921134,12.38625684,2389.3,2389.2,0.0063786]
[1726588921330,13.38386046,2389.3,2389.2,0.0063786]
[1726588921581,11.19334,2389.3,2389.2,0.0063786]
[1726588921787,15.30126464,2389.3,2389.2,0.0063786]
[1726588922379,6.38062464,2389.3,2389.2,0.0063786]
[1726588922669,6.38062464,2389.3,2389.2,4.1918786]
[1726588922670,2.2727,2389.3,2389.2,4.1918786]
[1726588922880,2.4306,2389.6,2389.4,4.18512]
[1726588923036,2.4306,2389.6,2389.5,4.18497]
[1726588923490,2.4306,2389.6,2389.4,8.37018]
[1726588923640,2.4306,2389.6,2389.4,4.18506]
[1726588923839,2.4306,2389.6,2389.2,4.1917186]
[1726588924050,2.4306,2389.6,2389.2,8.3771086]
[1726588924265,2.4306,2389.6,2389.3,4.18529]
[1726588924742,2.4306,2389.6,2389.3,4.18523]
[1726588925074,2.4306,2389.6,2389.2,0.0063786]
[1726588925238,2.4306,2389.6,2389.5,4.18497]
[1726588925582,7.18369,2390.3,2389.7,4.18461]
[1726588925583,2.4427,2389.9,2389.7,4.18461]
[1726588925786,2.4427,2389.9,2389.8,4.18445]
[1726588925938,2.4427,2389.9,2389.4,4.18504]
[1726588926255,3.105394,2389.9,2389.4,4.18504]
[1726588927065,3.105394,2389.9,2389.5,4.18496]
[1726588927352,3.105394,2389.9,2389.5,4.18488]
[1726588927559,2.4427,2389.9,2389.7,4.1846]
[1726588928672,2.4427,2389.9,2389.7,4.18452]
[1726588928957,1.74969345,2390.2,2390.1,8.36784]
[1726588928958,2.2987,2390.2,2390.1,8.36784]
[1726588929156,2.3453,2390.5,2390.4,4.1834]
[1726588929409,2.3453,2390.5,2390.3,4.18347]
[1726588929898,6.45639,2390.3,2389.5,4.18493]
[1726588930101,6.45639,2390.3,2389.7,4.18447]
[1726588930258,10.64005,2390.3,2389.7,8.36899]
[1726588930465,6.45636,2390.3,2389.8,4.18444]
[1726588930669,6.45636,2390.3,2389.9,4.18412]
[1726588930670,2.2727,2390.3,2389.9,4.18412]
[1726588930908,2.2727,2390.3,2390.1,4.18391]
[1726588931306,2.2727,2390.3,2389.9,4.18416]
[1726588931514,2.2727,2390.3,2389.9,8.36834]
[1726588931815,0.669071,2390.2,2389.9,4.18416]
[1726588932218,0.669071,2390.2,2389.7,4.18449]
[1726588932373,0.669071,2390.2,2389.9,4.18413]
[1726588932690,0.669071,2390.2,2389.9,4.18421]
[1726588933282,0.23453,2390.4,2390.0,4.18398]
[1726588933615,2.62010625,2390.8,2390.0,4.18398]
[1726588933616,3.93311532,2391.0,2390.6,4.18293]
[1726588933820,2.3747,2391.2,2390.1,3.0]
[1726588933987,1.78304055,2391.3,2391.1,4.18217]
[1726588934188,0.0333471,2391.3,2391.2,4.182]
[1726588934617,0.0333471,2391.3,2390.9,7.18237]
[1726588934921,0.28019181,2391.3,2391.1,4.18216]
[1726588935076,0.0325471,2391.3,2391.2,8.364]
[1726588935517,0.0325471,2391.3,2391.2,15.546]
[1726588936278,0.0325471,2391.3,2391.2,8.364]
[1726588937050,0.0325471,2391.3,2391.2,4.182]
[1726588937312,0.0325471,2391.3,2391.2,8.364]
[1726588937891,0.0325471,2391.3,2391.2,15.546]
[1726588939001,0.0325471,2391.3,2391.2,19.728]
[1726588939416,0.0325471,2391.3,2391.2,15.546]
[1726588940123,0.0325471,2391.3,2391.2,8.364]
[1726588940816,0.0325471,2391.3,2391.2,4.182]
[1726588941325,0.0325471,2391.3,2391.2,8.364]
[1726588941956,0.0325471,2391.3,2391.2,12.546]
[1726588942112,0.0325471,2391.3,2391.2,15.546]
[1726588942455,0.0325471,2391.3,2391.2,11.364]
[1726588943505,0.0325471,2391.3,2391.2,8.364]
[1726588943740,2.4132471,2391.3,2391.2,4.182]
[1726588943941,2.65457181,2391.3,2391.2,4.1777]
[1726588944207,2.65457181,2391.3,2391.2,4.182]
[1726588944647,2.65457181,2391.3,2391.1,4.18209]
[1726588944847,2.65457181,2391.3,2390.9,4.18238]
[1726588945023,2.281,2391.2,2390.8,4.1826]
[1726588945223,0.67367918,2391.1,2390.8,4.18263]
[1726588945439,0.67367918,2391.1,2390.8,8.36524]
[1726588945646,0.67367918,2391.1,2390.8,4.18262]
[1726588945813,0.67367918,2391.1,2390.8,8.36519]
[1726588946013,0.29546792,2391.0,2390.9,4.18252]
[1726588946235,0.29546792,2391.0,2390.8,4.18258]
[1726588946639,2.4033,2390.9,2390.7,4.18286]
[1726588946846,2.4033,2390.9,2390.7,4.18284]
[1726588947031,2.4033,2390.9,2390.6,4.18294]
[1726588947234,0.26987679,2390.8,2390.6,4.18294]
[1726588948330,0.26987679,2390.8,2390.7,4.18287]
[1726588948734,0.26987679,2390.8,2390.7,8.36574]
[1726588948956,2.4854,2391.2,2390.9,4.18245]
[1726588949162,2.4854,2391.2,2390.9,4.18238]
[1726588949361,2.4854,2391.2,2391.1,8.36434]
[1726588949864,0.0325471,2391.3,2391.2,8.364]
[1726588950362,0.0325471,2391.3,2391.2,11.364]
[1726588950519,0.0325471,2391.3,2391.2,15.546]
[1726588951462,0.0325471,2391.3,2391.2,21.728]
[1726588951668,0.0325471,2391.3,2391.2,17.546]
[1726588951822,0.0325471,2391.3,2391.2,21.728]
[1726588952128,0.0325471,2391.3,2391.2,17.546]
[1726588952560,0.0325471,2391.3,2391.2,21.728]
[1726588953827,0.0325471,2391.3,2391.2,17.546]
[1726588955644,7.45,2391.8,2391.7,8.36224]
[1726588955851,0.0397257,2392.0,2391.8,4.18081]
[1726588956051,0.0397257,2392.0,2391.9,8.44515835]
[1726588956265,0.0397257,2392.0,2391.9,12.62592835]
[1726588957020,0.0397257,2392.0,2391.9,15.54231]
[1726588957220,0.0397257,2392.0,2391.9,11.36154]
[1726588957463,0.0397257,2392.0,2391.9,8.36154]
[1726588957669,0.0397257,2392.0,2391.9,4.18077]
[1726588958068,0.0397257,2392.0,2391.9,8.36154]
[1726588958457,0.0397257,2392.0,2391.9,15.54231]
[1726588958625,0.0397257,2392.0,2391.9,11.36154]
[1726588958967,0.0397257,2392.0,2391.9,8.36154]
[1726588959725,0.0397257,2392.0,2391.9,4.18077]
[1726588960591,0.0397257,2392.0,2391.9,8.36154]
[1726588961403,0.0397257,2392.0,2391.9,15.62591582]
[1726588962156,0.0397257,2392.0,2391.9,15.54231]
[1726588963999,2.4844257,2392.0,2391.9,4.18077]
[1726588964176,2.73286827,2392.0,2391.9,4.18077]
[1726588964704,2.4844257,2392.0,2391.9,4.18077]
[1726588965003,2.4844257,2392.0,2391.9,8.36154]
[1726588965152,2.4844257,2392.0,2391.9,4.18077]
[1726588965351,2.4844257,2392.0,2391.8,4.18079]
[1726588965661,2.4844257,2392.0,2391.9,4.18077]
[1726588966055,2.4844257,2392.0,2391.6,3.0]
[1726588966056,2.73286827,2392.0,2391.7,4.18104]
[1726588966506,2.73286827,2392.0,2391.6,4.18117]
[1726588967498,2.73286827,2392.0,2391.7,4.18101]
[1726588968624,6.91347827,2392.0,2391.6,4.18127]
[1726588968974,2.73286827,2392.0,2391.6,4.18127]
[1726588969285,0.27328683,2391.9,2391.7,4.18109]
[1726588969480,0.27328683,2391.9,2391.6,4.18126]
[1726588970011,0.27328683,2391.9,2391.6,4.18122]
[1726588970213,0.27328683,2391.9,2391.6,4.18121]
[1726588970511,0.27328683,2391.9,2391.6,8.36243]
[1726588970709,0.27328683,2391.9,2391.7,4.18111]
[1726588970872,0.27328683,2391.9,2391.6,4.18121]
[1726588971072,0.27328683,2391.9,2391.6,4.18119]
[1726588971770,0.27328683,2391.9,2391.6,8.36236]
[1726588972381,0.27328683,2391.9,2391.7,4.18109]
[1726588972993,0.27328683,2391.9,2391.6,4.18127]
[1726588975914,0.27328683,2391.9,2391.6,4.18119]
[1726588976119,0.27328683,2391.9,2391.7,4.18099]
[1726588977910,2.73286827,2392.0,2391.7,4.18099]
[1726588978211,2.4844257,2392.0,2391.9,4.18077]
[1726588979380,2.4844257,2392.0,2391.3,6.1818]
[1726588979584,7.32147637,2392.0,2391.7,4.18104]
[1726588980001,7.32147637,2392.0,2391.6,4.18118]
[1726588980201,6.6650357,2392.0,2391.1,7.18205]
[1726588980421,1.25951692,2391.9,2391.6,4.18129]
[1726588980582,5.44028692,2391.9,2391.5,4.18135]
[1726588981121,5.44028692,2391.9,2391.6,4.1813]
[1726588981122,1.25951692,2391.9,2391.6,4.1813]
[1726588981417,1.25951692,2391.9,2391.5,4.18135]
[1726588981587,1.25951692,2391.9,2391.1,7.18205]
[1726588981588,1.25951692,2391.9,2391.6,4.18122]
[1726588981791,1.25951692,2391.9,2391.7,4.1811]
[1726588981988,1.25951692,2391.9,2391.7,4.18105]
[1726588982207,2.4844257,2392.0,2391.7,4.18105]
[1726588982523,4.23411915,2392.0,2391.7,4.18105]
[1726588982724,4.23411915,2392.0,2391.8,4.18083]
[1726588982889,2.4844257,2392.0,2391.7,4.18105]
[1726588983107,4.23411915,2392.0,2391.7,4.18111]
[1726588983426,2.4844257,2392.0,2391.7,4.18111]
[1726588983576,4.23411915,2392.0,2391.7,4.18111]
[1726588984515,4.23411915,2392.0,2391.7,4.18103]
[1726588984818,1.74969345,2391.9,2391.5,8.36269]
[1726588985027,9.89255686,2392.0,2391.6,4.18126]
[1726588985182,1.74969345,2391.9,2391.6,4.18126]
[1726588986216,1.74969345,2391.9,2391.5,8.36268]
[1726588986390,1.74969345,2391.8,2391.6,4.1812]
[1726588986892,1.74969345,2391.8,2391.2,4.18187]
[1726588987093,1.74969345,2391.7,2391.5,4.1814]
[1726588987922,1.74969345,2391.9,2391.5,4.1814]
[1726588988081,1.74969345,2391.8,2391.6,4.18129]
[1726588988283,1.74969345,2391.8,2391.7,4.18112]
[1726588988527,1.74969345,2391.9,2391.7,4.18112]
[1726588989088,4.23411915,2392.0,2391.7,4.18112]
[1726588989493,1.74969345,2391.9,2391.7,4.18112]
[1726588989707,1.74969345,2391.8,2391.6,4.1812]
[1726588989892,2.22410312,2391.9,2391.6,4.18116]
[1726588990094,1.74969345,2391.9,2391.7,4.18097]
[1726588990316,1.74969345,2391.8,2391.6,4.18127]
[1726588990919,1.74969345,2391.8,2391.5,4.18146]
[1726588991313,4.00689345,2391.7,2391.5,4.18146]
[1726588991509,9.88124135,2391.7,2390.6,2.0]
[1726588991708,6.43608,2391.1,2390.6,4.18296]
[1726588992040,4.18355,2390.4,2389.9,4.18419]
[1726588992201,2.2538,2390.2,2389.7,4.18452]
[1726588992542,3.07240505,2390.2,2389.6,4.25753933]
[1726588992837,9.00497554,2390.2,2389.8,4.18443]
[1726588993192,4.00253049,2390.2,2389.9,4.18427]
[1726588993397,1.74873049,2390.4,2390.2,4.18364]
[1726588993641,4.44113926,2390.5,2390.3,4.18357]
[1726588993642,2.2538,2390.5,2390.3,4.18357]
[1726588993947,2.2538,2390.5,2390.1,8.36772]
[1726588994232,2.2538,2390.5,2390.2,4.18365]
[1726588994412,2.2538,2390.5,2390.1,4.1838]
[1726588994608,4.00253049,2390.5,2390.2,4.18373]
[1726588994813,5.03981347,2390.5,2390.1,4.1838]
[1726588995146,4.18355,2390.4,2389.9,4.18414]
[1726588995439,4.00253049,2390.3,2389.9,4.18427]
[1726588995602,1.03734197,2390.2,2389.9,4.18427]
[1726588996033,2.2538,2390.3,2389.9,4.18427]
[1726588996240,1.74873049,2390.4,2390.2,4.18375]
[1726588996459,2.2538,2390.6,2390.4,4.18338]
[1726588996950,6.36987926,2390.9,2390.7,4.18276]
[1726588996951,4.12593049,2390.9,2390.7,4.18276]
[1726588997153,2.3772,2390.9,2390.7,4.18276]
[1726588997797,2.3772,2390.9,2390.6,4.18294]
[1726588998213,2.3772,2390.9,2390.7,4.18285]
[1726588998764,2.3772,2390.9,2390.8,4.1827]
[1726588999052,2.3772,2390.9,2390.7,4.18287]
[1726589000641,2.3772,2391.1,2390.8,4.18261]
[1726589001122,2.3772,2391.1,2390.5,0.08365515]
[1726589001123,2.3772,2391.1,2390.9,4.18242]
[1726589001322,2.3772,2391.1,2390.9,8.36486]
[1726589001544,2.3772,2391.1,2390.8,4.1826]
[1726589001717,2.3772,2391.1,2390.8,8.3652]
[1726589002148,7.87016367,2391.1,2390.0,3.0]
[1726589002347,7.87016367,2391.1,2390.1,4.1838]
[1726589002348,2.3772,2390.6,2390.1,4.1838]
[1726589002559,4.18262,2390.9,2389.5,2.0]
[1726589002560,2.3772,2390.3,2389.7,4.18447]
[1726589002858,6.56079,2390.3,2389.5,6.18487]
[1726589003161,6.56079,2390.3,2389.5,6.18485]
[1726589003320,2.3772,2390.3,2389.7,4.18455]
[1726589003512,2.3772,2390.3,2389.5,2.0]
[1726589003513,6.79853,2390.3,2389.5,4.18483]
[1726589003752,6.79853,2390.3,2389.5,4.18487]
[1726589003753,2.3772,2390.2,2389.5,4.18487]
[1726589003952,6.56104,2390.2,2389.5,4.18487]
[1726589004319,2.3772,2390.2,2389.5,4.18487]
[1726589004520,6.56104,2390.2,2389.5,4.18487]
[1726589004751,1.098243,2390.1,2389.6,4.18474]
[1726589004965,2.3772,2390.2,2389.7,4.268176]
[1726589005115,2.3772,2390.2,2389.6,4.1847]
[1726589007243,4.18403,2390.1,2389.4,4.18507]
[1726589007441,4.18403,2390.1,2389.4,8.37011]
[1726589007658,4.18411,2390.0,2389.4,4.18504]
[1726589007835,3.246214,2389.9,2389.4,4.18504]
[1726589008867,2.4094,2389.9,2389.4,4.18502]
[1726589009029,2.4094,2389.9,2389.4,8.37007]
[1726589009224,2.4094,2389.9,2389.5,4.18496]
[1726589009642,2.4094,2389.9,2389.4,8.37002]
[1726589009848,2.4094,2389.9,2389.2,0.0397257]
[1726589009849,2.4094,2389.9,2389.6,4.18462]
[1726589010055,2.4094,2389.9,2389.6,8.36932]
[1726589010331,4.18457,2389.8,2389.2,4.2250857]
[1726589010533,2.4094,2389.7,2389.2,4.2250857]
[1726589011034,4.1849,2389.6,2389.2,0.0397257]
[1726589011239,0.65943,2389.5,2389.2,0.0397257]
[1726589011576,4.18532,2389.3,2389.2,0.0397257]
[1726589011783,6.46792,2389.3,2389.2,0.0397257]
[1726589012282,10.65324,2389.3,2389.2,0.0397257]
[1726589012462,10.65324,2389.3,2388.4,4.2264857]
[1726589012463,10.65324,2389.3,2388.4,0.0397257]
[1726589012464,2.3784,2388.9,2388.4,0.0397257]
[1726589012662,0.656441,2388.8,2388.4,4.2265357]
[1726589013177,0.656441,2388.8,2388.6,4.18653]
[1726589013477,2.3784,2388.9,2388.6,4.18651]
[1726589013778,2.3784,2388.9,2388.4,4.2266057]
[1726589013931,2.3784,2388.9,2388.5,4.18671]
[1726589014471,2.3784,2388.9,2388.6,4.18654]
[1726589014629,2.3784,2388.9,2388.5,4.1867]
[1726589014830,0.23784,2388.8,2388.5,4.1867]
[1726589015470,0.23784,2388.8,2388.5,8.37333]
[1726589015676,0.23784,2388.8,2388.5,4.1866]
[1726589015846,2.3784,2388.9,2388.6,4.1865]
[1726589016046,2.3784,2388.9,2388.6,4.18646]
[1726589016256,2.3784,2388.9,2388.4,4.2264757]
[1726589016566,2.3784,2388.9,2388.7,4.18627]
[1726589017155,2.3784,2388.9,2388.5,4.18657]
[1726589017377,0.23784,2388.8,2388.5,4.18657]
[1726589017592,2.3784,2388.9,2388.6,4.1864]
[1726589017794,2.3784,2388.9,2388.7,4.18636]
[1726589018170,2.3784,2388.9,2388.7,8.37265]
[1726589018492,2.3784,2388.9,2388.7,4.18629]
[1726589018694,2.3784,2388.9,2388.7,4.18628]
[1726589018886,2.3784,2388.9,2388.7,4.18622]
[1726589019458,2.3784,2388.9,2388.7,8.37251]
[1726589019660,2.3784,2388.9,2388.7,4.18622]
[1726589019888,2.61624,2388.9,2388.7,4.18622]
[1726589020503,2.3784,2388.9,2388.8,4.1862]
[1726589020861,2.3784,2388.9,2388.7,4.18622]
[1726589021259,2.3784,2388.9,2388.6,4.18653]
[1726589021564,2.3784,2388.9,2388.7,4.18636]
[1726589022191,2.3784,2388.9,2388.8,4.1862]
[1726589022398,2.3784,2388.9,2388.5,4.18657]
[1726589022597,2.61624,2388.9,2388.6,4.18642]
[1726589023388,2.61624,2388.9,2388.7,4.18621]
[1726589023924,2.61624,2388.9,2388.4,4.2266257]
[1726589023925,2.331,2389.2,2389.0,4.18568]
[1726589024093,2.331,2389.2,2388.8,4.18619]
[1726589024486,2.331,2389.2,2388.7,4.18634]
[1726589024697,2.331,2389.2,2388.8,4.18619]
[1726589024923,0.65164,2389.1,2388.8,4.18619]
[1726589025444,2.331,2389.2,2389.1,4.18567]
[1726589025587,2.331,2389.5,2389.4,8.3703]
[1726589025927,7.42,2390.1,2389.4,4.1851]
[1726589025928,2.331,2390.0,2389.4,4.1851]
[1726589026130,4.142877,2390.0,2389.6,4.18479]
[1726589026282,4.18309,2390.6,2389.6,4.18479]
[1726589026283,2.2853,2390.5,2390.3,4.18342]
[1726589026485,4.18228,2391.1,2390.1,3.0]
[1726589026718,4.18228,2391.1,2390.4,4.18331]
[1726589027082,8.36457,2391.1,2390.4,4.18331]
[1726589027283,5.247357,2391.0,2390.4,4.18331]
[1726589027480,5.247357,2391.0,2390.3,4.1834]
[1726589027736,6.90560856,2390.9,2390.3,4.1834]
[1726589027881,2.72303856,2390.9,2390.3,4.1834]
[1726589028083,2.72303856,2390.9,2390.4,4.1833]
[1726589028301,0.79703956,2390.8,2390.4,4.1833]
[1726589028806,0.79703956,2390.8,2390.3,4.1834]
[1726589028807,0.79703956,2390.8,2390.3,8.36688]
[1726589029454,0.79703956,2390.8,2390.4,4.18338]
[1726589029645,2.2853,2390.9,2390.7,4.18287]
[1726589029803,2.2853,2390.9,2390.5,4.1831]
[1726589030013,2.2853,2390.9,2390.6,4.18295]
[1726589030210,2.2853,2390.9,2390.7,4.18285]
[1726589030648,2.2853,2390.9,2390.8,4.1827]
[1726589031153,2.4901,2391.2,2390.8,4.1827]
[1726589031334,2.74308257,2391.2,2390.8,4.1827]
[1726589031848,2.4901,2390.9,2390.4,4.18336]
[1726589032014,2.4901,2390.9,2390.3,4.18357]
[1726589032015,6.67277,2390.9,2390.3,4.18357]
[1726589032216,6.67273,2390.9,2390.3,4.18357]
[1726589032415,4.18295,2390.7,2389.8,2.0]
[1726589032648,0.418295,2390.6,2390.0,4.18397]
[1726589032811,0.418295,2390.6,2390.2,4.18374]
[1726589033211,2.4901,2390.5,2389.4,4.18509]
[1726589033428,2.4901,2390.5,2390.2,4.18373]
[1726589033606,2.4901,2390.5,2389.6,2.0]
[1726589033607,2.4901,2390.5,2389.6,6.18471]
[1726589033818,0.24901,2390.4,2390.0,4.184]
[1726589034036,0.24901,2390.4,2390.0,8.36801]
[1726589034247,0.24901,2390.4,2390.2,4.18373]
[1726589034606,0.24901,2390.4,2390.0,4.184]
[1726589034812,0.24901,2390.4,2390.0,4.18399]
[1726589035109,0.24901,2390.4,2390.1,4.18391]
[1726589036583,0.24901,2390.4,2390.2,4.1837]
[1726589036767,0.24901,2390.4,2390.1,4.18381]
[1726589037276,2.3063,2390.8,2390.6,4.18304]
[1726589037491,2.3063,2390.8,2390.4,4.18332]
[1726589037492,2.3063,2390.8,2390.5,4.18322]
[1726589038137,2.3063,2390.8,2390.4,4.18332]
[1726589038340,2.3063,2390.8,2390.0,5.0]
[1726589038341,6.48912,2390.8,2390.3,4.18356]
[1726589038536,6.489,2390.8,2390.2,4.18362]
[1726589038774,0.6489,2390.7,2390.3,4.18354]
[1726589039582,0.6489,2390.7,2389.7,2.0]
[1726589039793,2.3931,2390.6,2389.4,2.0]
[1726589039958,2.3931,2390.6,2390.0,4.18396]
[1726589040440,2.3931,2390.6,2390.3,4.18356]
[1726589040641,6.5764,2390.5,2389.8,4.18435]
[1726589040881,6.5764,2390.5,2389.9,4.18414]
[1726589041085,4.18302,2390.7,2389.8,4.18435]
[1726589041086,4.18368,2390.3,2389.8,4.18435]
[1726589041394,2.3931,2389.9,2389.1,2.0]
[1726589041686,0.65764,2390.4,2389.9,4.18419]
[1726589041687,7.42,2390.1,2389.9,4.18419]
[1726589041892,2.3931,2390.2,2390.0,8.36806]
[1726589042182,2.3931,2390.2,2390.1,4.18392]
[1726589042482,2.3931,2390.2,2390.0,4.18397]
[1726589042645,2.3931,2390.2,2390.1,4.18392]
[1726589042840,2.3931,2390.2,2390.0,4.18397]
[1726589043054,2.3931,2390.2,2390.0,8.36797]
[1726589043271,2.3463,2390.4,2390.3,4.18357]
[1726589043478,9.8481,2390.6,2390.5,4.18322]
[1726589043681,9.8481,2390.6,2390.3,4.1834]
[1726589043682,2.4281,2390.6,2390.4,4.1833]
[1726589043901,4.18227,2391.1,2390.0,4.18407]
[1726589043902,2.4281,2391.1,2390.7,4.18285]
[1726589044049,2.4281,2391.1,2390.7,4.18278]
[1726589044500,2.4281,2391.1,2390.7,4.18277]
[1726589044792,2.4281,2391.1,2390.6,4.18294]
[1726589045855,6.61028,2391.1,2390.5,4.18305]
[1726589046185,0.661028,2391.0,2390.5,4.18305]
[1726589046552,4.843478,2391.0,2390.3,4.18345]
[1726589046752,2.2516,2390.9,2390.3,4.18345]
[1726589047056,2.2516,2390.9,2390.1,3.0]
[1726589047057,2.2516,2390.9,2390.5,4.18312]
[1726589047403,2.2516,2390.9,2390.5,4.18321]
[1726589047561,2.5428628,2390.9,2390.5,4.18321]
[1726589047955,2.5428628,2390.9,2390.5,4.18313]
[1726589048152,2.2516,2390.9,2390.7,4.18284]
[1726589048803,2.2516,2390.9,2390.7,4.18277]
[1726589049859,2.2516,2390.9,2390.6,4.18296]
[1726589050092,2.2516,2390.9,2390.5,4.18313]
[1726589050289,2.2516,2390.9,2390.5,4.18308]
[1726589051002,2.47676,2390.9,2390.5,4.18308]
[1726589051713,2.47676,2390.9,2390.5,8.3662]
[1726589051857,2.47676,2390.9,2390.6,4.18304]
[1726589052494,2.47676,2390.9,2390.5,8.3662]
[1726589052696,0.247676,2390.8,2390.5,4.18308]
[1726589052903,0.247676,2390.8,2390.5,8.36621]
[1726589053084,0.247676,2390.8,2390.3,4.18342]
[1726589053287,2.47676,2390.9,2390.6,4.18304]
[1726589053562,2.2516,2390.9,2390.6,4.18292]
[1726589054379,2.2516,2390.9,2390.5,4.1832]
[1726589055504,2.2516,2390.9,2390.4,4.18326]
[1726589055659,2.2516,2390.9,2390.5,4.18313]
[1726589056192,2.2516,2390.9,2390.4,4.18338]
[1726589056504,0.643395,2390.8,2390.6,4.18304]
[1726589056659,2.2516,2390.9,2390.6,4.18297]
[1726589056864,2.2516,2390.9,2390.7,4.18279]
[1726589057103,2.2516,2390.9,2390.8,4.1827]
[1726589057297,2.4103,2391.2,2390.3,2.61426004]
[1726589057571,2.4103,2391.2,2390.9,4.18244]
[1726589057770,2.4103,2391.2,2390.4,3.0]
[1726589057771,0.98700257,2391.1,2390.7,4.18272]
[1726589057969,2.4103,2391.2,2390.5,4.1831]
[1726589058409,2.4103,2391.2,2390.8,4.18254]
[1726589058594,2.4103,2391.2,2390.9,4.18244]
[1726589059307,2.3427,2391.0,2390.2,7.18364]
[1726589059512,2.2717,2390.6,2390.2,4.18361]
[1726589059730,2.2717,2390.6,2390.2,4.18374]
[1726589060015,2.2717,2390.6,2390.2,4.18366]
[1726589060170,2.2717,2390.6,2390.3,4.18347]
[1726589061216,2.2717,2390.6,2390.5,4.18322]
[1726589062300,2.2717,2390.6,2390.4,4.18338]
[1726589062301,2.2717,2390.6,2390.4,4.18325]
[1726589062600,2.49887,2390.6,2390.4,4.18325]
[1726589062798,2.49887,2390.6,2390.2,4.18361]
[1726589063000,2.49887,2390.6,2390.2,4.18357]
[1726589063321,2.49887,2390.6,2390.0,2.0]
[1726589063322,2.49887,2390.6,2390.3,8.3669]
[1726589063625,0.249887,2390.5,2390.3,4.18342]
[1726589063820,0.249887,2390.5,2389.8,3.0]
[1726589063821,0.249887,2390.5,2389.9,4.18415]
[1726589064026,0.249887,2390.5,2390.0,7.184]
[1726589064178,0.249887,2390.5,2390.1,4.18381]
[1726589064376,0.249887,2390.5,2390.2,4.1837]
[1726589064570,0.249887,2390.5,2390.1,4.18381]
[1726589064799,2.296,2390.4,2389.7,5.0]
[1726589065007,2.9689127,2390.4,2390.0,4.18397]
[1726589065172,2.9689127,2390.4,2390.1,4.1839]
[1726589065521,2.9689127,2390.4,2390.0,4.18397]
[1726589065717,7.1524027,2390.4,2389.9,4.1841]
[1726589066616,7.1524027,2390.4,2389.9,4.18425]
[1726589066921,1.13389423,2390.3,2389.9,8.36844]
[1726589067134,1.13389423,2390.3,2389.9,8.36835]
[1726589067307,1.13389423,2390.3,2390.0,4.18401]
[1726589067678,1.13389423,2390.3,2389.9,4.18416]
[1726589067990,1.13389423,2390.3,2390.0,4.18399]
[1726589068182,1.13389423,2390.3,2390.1,4.18391]
[1726589068524,2.9689127,2390.4,2390.1,4.18391]
[1726589068877,2.9689127,2390.4,2390.1,4.18384]
[1726589069194,2.296,2390.4,2390.2,4.18367]
[1726589070679,2.296,2390.4,2389.9,8.36833]
[1726589070877,2.296,2390.4,2390.0,8.36794]
[1726589071088,2.296,2390.4,2390.0,4.18393]
[1726589071292,4.04473049,2390.4,2390.0,8.36792]
[1726589071488,2.59652524,2390.3,2390.0,8.36792]
[1726589071720,2.59652524,2390.3,2390.0,4.18393]
[1726589071932,2.59652524,2390.3,2390.0,8.36795]
[1726589072293,2.59652524,2390.3,2390.0,4.18393]
[1726589072687,1.74873049,2390.2,2390.0,4.18393]
[1726589073027,2.59652524,2390.3,2390.0,4.18393]
[1726589073520,2.59652524,2390.3,2390.0,4.184]
[1726589073737,1.74873049,2390.2,2390.0,4.184]
[1726589074077,1.74873049,2390.3,2390.2,4.18375]
[1726589074279,2.296,2390.4,2390.3,8.36714]
[1726589074803,2.296,2390.4,2390.3,4.18357]
[1726589075284,1.75093518,2390.5,2390.4,4.1834]
[1726589075484,1.75093518,2390.6,2390.4,4.1834]
[1726589075896,1.75093518,2390.6,2390.5,4.18322]
[1726589076418,4.15441097,2390.7,2390.5,4.18322]
[1726589076625,1.75131097,2390.6,2390.3,4.18345]
[1726589076828,1.75131097,2390.5,2390.3,4.18345]
[1726589077608,1.75131097,2390.5,2390.2,4.18373]
[1726589077817,1.75131097,2390.4,2390.2,4.18368]
[1726589078705,2.18689271,2390.6,2390.1,4.18383]
[1726589078706,1.75131097,2390.5,2390.3,4.18357]
[1726589078906,2.361,2390.3,2389.9,4.18414]
[1726589079153,4.11231097,2390.3,2389.9,4.18414]
[1726589079306,1.75131097,2390.2,2390.0,4.18407]
[1726589079964,4.11231097,2390.3,2390.2,4.18375]
[1726589080107,2.361,2390.3,2390.2,8.3675]
[1726589080307,4.04131097,2390.6,2390.3,4.18357]
[1726589080529,1.75131097,2390.5,2390.3,4.18357]
[1726589081771,1.75131097,2390.5,2390.0,4.18408]
[1726589081920,1.75131097,2390.5,2390.1,4.18378]
[1726589082121,1.75131097,2390.5,2390.2,4.18371]
[1726589082343,3.29080132,2390.5,2390.2,4.18371]
[1726589083027,3.29080132,2390.5,2390.3,4.18354]
[1726589083735,1.75131097,2390.5,2390.3,4.18354]
[1726589084046,1.75131097,2390.5,2390.4,4.1834]
[1726589084460,2.29,2390.6,2390.5,4.18322]
[1726589084769,1.7486663,2390.6,2390.5,4.18322]
[1726589084919,1.7486663,2390.7,2390.6,4.18305]
[1726589085844,1.7486663,2390.7,2390.5,4.18319]
[1726589086781,1.7486663,2390.6,2390.5,4.18319]
[1726589087072,1.7486663,2390.7,2390.5,4.18319]
[1726589087222,1.7486663,2390.6,2389.8,3.0]
[1726589087422,1.7486663,2390.5,2390.3,4.18343]
[1726589088069,2.4976,2390.4,2390.3,4.18343]
[1726589088273,2.4976,2390.4,2390.2,4.18371]
[1726589088483,2.4976,2390.4,2389.9,4.18413]